[Event "*** Titled Tuesday Blitz"]
[Site "Chess.com"]
[Date "2020.11.03"]
[Round "10"]
[White "Anton_Demchenko"]
[Black "LiemLe"]
[Result "0-1"]
[WhiteElo "2843"]
[BlackElo "3002"]
[TimeControl "180+1"]
[EndTime "11:59:44 PST"]
[Termination "LiemLe won by resignation"]

1. d4 {[%clk 0:03:00.9]} 1... Nf6 {[%clk 0:02:59.6]} 2. Nf3 {[%clk 0:03:01.3]}
2... d5 {[%clk 0:02:59.2]} 3. Bf4 {[%clk 0:03:01.1]} 3... c5 {[%clk 0:02:58.5]}
4. e3 {[%clk 0:03:00.6]} 4... Qb6 {[%clk 0:02:59]} 5. dxc5 {[%clk 0:02:55.7]}
5... Qxb2 {[%clk 0:02:53.7]} 6. Nbd2 {[%clk 0:02:56.1]} 6... Nc6 {[%clk
0:02:53.4]} 7. Rb1 {[%clk 0:02:55.3]} 7... Qc3 {[%clk 0:02:52.4]} 8. Bb5 {[%clk
0:02:55.6]} 8... g6 {[%clk 0:02:49.6]} 9. e4 {[%clk 0:02:54.6]} 9... Bg7 {[%clk
0:02:30]} 10. O-O {[%clk 0:02:37.8]} 10... Nxe4 {[%clk 0:02:14]} 11. Nxe4 {[%clk
0:01:30.4]} 11... dxe4 {[%clk 0:02:14.9]} 12. Ng5 {[%clk 0:01:22.1]} 12... Qxc5
{[%clk 0:01:46.8]} 13. Nxe4 {[%clk 0:01:21.3]} 13... Qf5 {[%clk 0:01:46.9]} 14.
Bxc6+ {[%clk 0:00:38.1]} 14... bxc6 {[%clk 0:01:47.8]} 15. Nd6+ {[%clk
0:00:38.5]} 15... exd6 {[%clk 0:01:47.9]} 16. Qxd6 {[%clk 0:00:35.6]} 16... Qd5
{[%clk 0:01:46.4]} 17. Rfe1+ {[%clk 0:00:34.4]} 17... Be6 {[%clk 0:01:46.5]} 18.
Rb8+ {[%clk 0:00:30.3]} 18... Rxb8 {[%clk 0:01:46.1]} 19. Qxb8+ {[%clk
0:00:30.9]} 19... Qd8 {[%clk 0:01:26.9]} 20. Qb4 {[%clk 0:00:23.9]} 20... a5
{[%clk 0:01:21]} 21. Qa3 {[%clk 0:00:17.5]} 21... Bf6 {[%clk 0:01:13.1]} 22. Bh6
{[%clk 0:00:07.6]} 22... Qb6 {[%clk 0:00:40.1]} 23. h3 {[%clk 0:00:05.6]} 23...
Kd7 {[%clk 0:00:38.8]} 24. Rd1+ {[%clk 0:00:03]} 24... Kc8 {[%clk 0:00:38.1]}
25. Bf8 {[%clk 0:00:03.7]} 25... Bd4 {[%clk 0:00:26.3]} 26. c3 {[%clk
0:00:02.2]} 26... Bxf2+ {[%clk 0:00:24.9]} 27. Kh1 {[%clk 0:00:02.9]} 27... Qc7
{[%clk 0:00:18.8]} 28. Bd6 {[%clk 0:00:02.3]} 28... Qa7 {[%clk 0:00:18.3]} 29.
Bf8 {[%clk 0:00:01.9]} 29... h5 {[%clk 0:00:17.4]} 30. Qd6 {[%clk 0:00:01.9]}
30... Qc7 {[%clk 0:00:17.7]} 31. Qa3 {[%clk 0:00:02.1]} 31... h4 {[%clk
0:00:18.1]} 32. Bd6 {[%clk 0:00:01.9]} 32... Qa7 {[%clk 0:00:18.7]} 33. Bf8
{[%clk 0:00:02.1]} 33... Bg3 {[%clk 0:00:17.5]} 34. Rb1 {[%clk 0:00:01.9]} 34...
Qc7 {[%clk 0:00:15.5]} 35. Rd1 {[%clk 0:00:02]} 35... Rh5 {[%clk 0:00:15.5]} 36.
Rb1 {[%clk 0:00:01.9]} 36... Rb5 {[%clk 0:00:15.4]} 37. Rd1 {[%clk 0:00:02]}
37... Bf5 {[%clk 0:00:15.1]} 38. c4 {[%clk 0:00:01.3]} 38... Rb1 {[%clk
0:00:14.4]} 39. Bc5 {[%clk 0:00:01.6]} 39... Rxd1+ {[%clk 0:00:14]} 0-1

[Event "*** Titled Tuesday Blitz"]
[Site "Chess.com"]
[Date "2020.11.03"]
[Round "10"]
[White "Kotofeyca"]
[Black "ShahMatKanal"]
[Result "0-1"]
[WhiteElo "2364"]
[BlackElo "2488"]
[TimeControl "180+1"]
[EndTime "11:59:47 PST"]
[Termination "ShahMatKanal won by checkmate"]

1. d4 {[%clk 0:03:00.9]} 1... e6 {[%clk 0:02:59.7]} 2. c4 {[%clk 0:03:00.7]}
2... c5 {[%clk 0:02:59.1]} 3. Nf3 {[%clk 0:03:00]} 3... cxd4 {[%clk 0:02:58.2]}
4. Nxd4 {[%clk 0:03:00.9]} 4... Nf6 {[%clk 0:02:58.9]} 5. Nc3 {[%clk 0:03:01]}
5... d6 {[%clk 0:02:59.4]} 6. g3 {[%clk 0:03:01.2]} 6... Be7 {[%clk 0:02:59.9]}
7. Bg2 {[%clk 0:03:01.5]} 7... O-O {[%clk 0:03:00.5]} 8. O-O {[%clk 0:03:01.9]}
8... a6 {[%clk 0:03:01]} 9. b3 {[%clk 0:03:02.1]} 9... Qc7 {[%clk 0:02:58.2]}
10. Bb2 {[%clk 0:03:01.8]} 10... Nc6 {[%clk 0:02:57.6]} 11. Rc1 {[%clk 0:03:02]}
11... Ne5 {[%clk 0:02:51.6]} 12. h3 {[%clk 0:02:59.5]} 12... Re8 {[%clk
0:02:48.4]} 13. Kh2 {[%clk 0:02:59]} 13... Rb8 {[%clk 0:02:45.3]} 14. f4 {[%clk
0:02:58.8]} 14... Ng6 {[%clk 0:02:45.2]} 15. e4 {[%clk 0:02:56.8]} 15... h5
{[%clk 0:02:40.3]} 16. f5 {[%clk 0:02:40.2]} 16... Ne5 {[%clk 0:02:31.5]} 17.
fxe6 {[%clk 0:02:40]} 17... fxe6 {[%clk 0:02:31.5]} 18. Nf3 {[%clk 0:02:06.8]}
18... Ng6 {[%clk 0:02:13.2]} 19. Ng5 {[%clk 0:02:00.4]} 19... h4 {[%clk
0:02:08.3]} 20. Ne2 {[%clk 0:01:31.9]} 20... Nh5 {[%clk 0:01:48.2]} 21. Nf3
{[%clk 0:01:16.5]} 21... hxg3+ {[%clk 0:01:16.8]} 22. Nxg3 {[%clk 0:01:15.9]}
22... Nhf4 {[%clk 0:01:17]} 23. e5 {[%clk 0:00:57.3]} 23... dxe5 {[%clk
0:01:04.8]} 24. Ne4 {[%clk 0:00:56.4]} 24... Nxg2 {[%clk 0:01:02.3]} 25. Kxg2
{[%clk 0:00:55.9]} 25... Rf8 {[%clk 0:00:57.2]} 26. Nfg5 {[%clk 0:00:54.6]}
26... Bxg5 {[%clk 0:00:46.3]} 27. Nxg5 {[%clk 0:00:53.5]} 27... Qc6+ {[%clk
0:00:46.8]} 28. Kh2 {[%clk 0:00:45.4]} 28... Nf4 {[%clk 0:00:44.3]} 29. Qg4
{[%clk 0:00:35.4]} 29... Rf5 {[%clk 0:00:28]} 30. Rg1 {[%clk 0:00:33.5]} 30...
Ng6 {[%clk 0:00:21.8]} 31. Ne4 {[%clk 0:00:24.3]} 31... b6 {[%clk 0:00:05.6]}
32. Qxg6 {[%clk 0:00:22.3]} 32... Rb7 {[%clk 0:00:06.1]} 33. Rce1 {[%clk
0:00:20]} 33... Rbf7 {[%clk 0:00:05.5]} 34. Rg4 {[%clk 0:00:18.7]} 34... Bb7
{[%clk 0:00:05.1]} 35. Rh4 {[%clk 0:00:17.9]} 35... Rf2+ {[%clk 0:00:04.6]} 36.
Nxf2 {[%clk 0:00:14.9]} 36... Rxf2+ {[%clk 0:00:04.6]} 37. Kg1 {[%clk
0:00:09.4]} 37... Rg2+ {[%clk 0:00:04.8]} 38. Kf1 {[%clk 0:00:08.1]} 38... Qf3#
{[%clk 0:00:04.9]} 0-1

[Event "*** Titled Tuesday Blitz"]
[Site "Chess.com"]
[Date "2020.11.03"]
[Round "10"]
[White "ChristopherYoo"]
[Black "ftorodent"]
[Result "0-1"]
[WhiteElo "2830"]
[BlackElo "2684"]
[TimeControl "180+1"]
[EndTime "11:59:48 PST"]
[Termination "ftorodent won on time"]

1. e4 {[%clk 0:02:59.4]} 1... e6 {[%clk 0:02:59.9]} 2. b3 {[%clk 0:02:58.9]}
2... d5 {[%clk 0:02:59]} 3. Bb2 {[%clk 0:02:58.9]} 3... dxe4 {[%clk 0:02:58.3]}
4. Nc3 {[%clk 0:02:58.4]} 4... Nf6 {[%clk 0:02:58.2]} 5. Qe2 {[%clk 0:02:58.8]}
5... Be7 {[%clk 0:02:47.7]} 6. O-O-O {[%clk 0:02:57.5]} 6... Nc6 {[%clk
0:02:47.1]} 7. g4 {[%clk 0:02:54.3]} 7... Nd4 {[%clk 0:02:42.8]} 8. Qe1 {[%clk
0:02:52.3]} 8... Nxg4 {[%clk 0:02:22.2]} 9. Nxe4 {[%clk 0:02:44.3]} 9... Nf6
{[%clk 0:02:20.1]} 10. Bg2 {[%clk 0:02:40.5]} 10... c5 {[%clk 0:02:07]} 11. Ne2
{[%clk 0:02:37.1]} 11... e5 {[%clk 0:01:52.5]} 12. Nxf6+ {[%clk 0:02:02]} 12...
Bxf6 {[%clk 0:01:51.6]} 13. Nxd4 {[%clk 0:02:01.9]} 13... cxd4 {[%clk
0:01:50.9]} 14. f4 {[%clk 0:02:02.2]} 14... O-O {[%clk 0:01:32.3]} 15. fxe5
{[%clk 0:02:01.4]} 15... Re8 {[%clk 0:01:32.5]} 16. Qf2 {[%clk 0:01:08.1]} 16...
Bxe5 {[%clk 0:01:31.7]} 17. Rde1 {[%clk 0:01:06.3]} 17... Qc7 {[%clk 0:01:07.5]}
18. Rhg1 {[%clk 0:00:56]} 18... d3 {[%clk 0:00:53.2]} 19. c4 {[%clk 0:00:45]}
19... Bxb2+ {[%clk 0:00:52.2]} 20. Kxb2 {[%clk 0:00:44.9]} 20... Rxe1 {[%clk
0:00:51.7]} 21. Rxe1 {[%clk 0:00:44.9]} 21... Be6 {[%clk 0:00:52.3]} 22. Be4
{[%clk 0:00:30.1]} 22... Rd8 {[%clk 0:00:42.7]} 23. Re3 {[%clk 0:00:28.9]} 23...
b5 {[%clk 0:00:38.1]} 24. Rxd3 {[%clk 0:00:22.4]} 24... Qe5+ {[%clk 0:00:35]}
25. Kc1 {[%clk 0:00:12.4]} 25... Qa1+ {[%clk 0:00:33.2]} 26. Kc2 {[%clk
0:00:12.5]} 26... Qxa2+ {[%clk 0:00:33.4]} 27. Kc3 {[%clk 0:00:12.4]} 27... b4+
{[%clk 0:00:28.3]} 28. Kxb4 {[%clk 0:00:11.2]} 28... Rb8+ {[%clk 0:00:28.3]} 29.
Kc5 {[%clk 0:00:08.9]} 29... Qa5+ {[%clk 0:00:26.2]} 30. Kd4 {[%clk 0:00:08.7]}
30... Rd8+ {[%clk 0:00:21.4]} 31. Ke3 {[%clk 0:00:06.7]} 31... Qb6+ {[%clk
0:00:18.3]} 32. Ke2 {[%clk 0:00:03.9]} 32... Qxf2+ {[%clk 0:00:17]} 33. Kxf2
{[%clk 0:00:04.2]} 33... Rxd3 {[%clk 0:00:16.6]} 34. Bxd3 {[%clk 0:00:05.1]}
34... a5 {[%clk 0:00:14.9]} 35. Ke3 {[%clk 0:00:04.9]} 35... Kf8 {[%clk
0:00:12.8]} 36. Kd4 {[%clk 0:00:04.8]} 36... Ke7 {[%clk 0:00:13.3]} 37. Bxh7
{[%clk 0:00:04.2]} 37... g6 {[%clk 0:00:12.9]} 38. Ke5 {[%clk 0:00:02.9]} 38...
f6+ {[%clk 0:00:10.7]} 39. Kd4 {[%clk 0:00:03.1]} 39... Kf7 {[%clk 0:00:11.1]}
0-1

[Event "*** Titled Tuesday Blitz"]
[Site "Chess.com"]
[Date "2020.11.03"]
[Round "10"]
[White "Borsuk_Konstantin"]
[Black "machupichu10"]
[Result "1-0"]
[WhiteElo "2627"]
[BlackElo "2762"]
[TimeControl "180+1"]
[EndTime "11:59:51 PST"]
[Termination "Borsuk_Konstantin won on time"]

1. d4 {[%clk 0:03:00.9]} 1... Nf6 {[%clk 0:02:59.6]} 2. c4 {[%clk 0:03:01.2]}
2... e6 {[%clk 0:02:59.3]} 3. Nc3 {[%clk 0:03:00.7]} 3... c5 {[%clk 0:02:56.3]}
4. d5 {[%clk 0:03:00]} 4... exd5 {[%clk 0:02:54.9]} 5. cxd5 {[%clk 0:03:00.1]}
5... d6 {[%clk 0:02:52.1]} 6. Nf3 {[%clk 0:03:00.2]} 6... g6 {[%clk 0:02:50.7]}
7. g3 {[%clk 0:03:00.5]} 7... Bg7 {[%clk 0:02:51.2]} 8. Bg2 {[%clk 0:03:01.1]}
8... O-O {[%clk 0:02:51.6]} 9. O-O {[%clk 0:03:01.2]} 9... Re8 {[%clk
0:02:46.3]} 10. Nd2 {[%clk 0:03:01]} 10... Nbd7 {[%clk 0:02:13.2]} 11. a4 {[%clk
0:02:56.8]} 11... Qe7 {[%clk 0:02:08.2]} 12. Re1 {[%clk 0:02:51.4]} 12... Ne5
{[%clk 0:01:55.7]} 13. h3 {[%clk 0:02:43.6]} 13... g5 {[%clk 0:01:55.9]} 14. Nf1
{[%clk 0:02:33.7]} 14... h6 {[%clk 0:01:47.5]} 15. e4 {[%clk 0:02:29.7]} 15...
c4 {[%clk 0:01:42.7]} 16. Ne3 {[%clk 0:02:16.8]} 16... Bd7 {[%clk 0:01:39.8]}
17. Re2 {[%clk 0:01:59.1]} 17... Rac8 {[%clk 0:01:38.7]} 18. Nf5 {[%clk
0:01:54.1]} 18... Bxf5 {[%clk 0:01:36.2]} 19. exf5 {[%clk 0:01:55]} 19... Qd7
{[%clk 0:01:36.9]} 20. Be3 {[%clk 0:01:54.2]} 20... Qxf5 {[%clk 0:01:22.1]} 21.
Bxa7 {[%clk 0:01:53.7]} 21... Nd3 {[%clk 0:01:22.4]} 22. Nb5 {[%clk 0:01:41.8]}
22... Qd7 {[%clk 0:01:08.2]} 23. Rxe8+ {[%clk 0:01:35.1]} 23... Rxe8 {[%clk
0:01:06.8]} 24. Qc2 {[%clk 0:01:32.2]} 24... Ne4 {[%clk 0:01:00.8]} 25. Qxc4
{[%clk 0:01:27.3]} 25... Nxb2 {[%clk 0:00:57.3]} 26. Qc2 {[%clk 0:01:09.4]}
26... Nc5 {[%clk 0:00:42.8]} 27. Bxc5 {[%clk 0:01:06]} 27... dxc5 {[%clk
0:00:43.7]} 28. Rb1 {[%clk 0:00:55.9]} 28... Qe7 {[%clk 0:00:19.7]} 29. d6
{[%clk 0:00:49.2]} 29... Qe2 {[%clk 0:00:18.1]} 30. Qxe2 {[%clk 0:00:21.4]}
30... Rxe2 {[%clk 0:00:19]} 31. Bxb7 {[%clk 0:00:19.8]} 31... Nxa4 {[%clk
0:00:18.1]} 32. Rd1 {[%clk 0:00:19.5]} 32... Bf6 {[%clk 0:00:17.4]} 33. d7
{[%clk 0:00:19.3]} 33... Bd8 {[%clk 0:00:17.7]} 34. Nd6 {[%clk 0:00:18.4]} 34...
Nc3 {[%clk 0:00:16.4]} 35. Rd3 {[%clk 0:00:17.7]} 35... Re1+ {[%clk 0:00:13.7]}
36. Kg2 {[%clk 0:00:17.4]} 36... Ne2 {[%clk 0:00:14.4]} 37. Bc8 {[%clk
0:00:12.1]} 37... c4 {[%clk 0:00:13.6]} 38. Nxc4 {[%clk 0:00:11.6]} 38... Rg1+
{[%clk 0:00:07.9]} 39. Kf3 {[%clk 0:00:09.8]} 39... Nc1 {[%clk 0:00:05.4]} 40.
Re3 {[%clk 0:00:09.6]} 40... Kg7 {[%clk 0:00:04.1]} 41. Re8 {[%clk 0:00:09.8]}
1-0

[Event "*** Titled Tuesday Blitz"]
[Site "Chess.com"]
[Date "2020.11.03"]
[Round "10"]
[White "TokChess"]
[Black "lucachess49"]
[Result "1-0"]
[WhiteElo "2461"]
[BlackElo "2358"]
[TimeControl "180+1"]
[EndTime "11:59:53 PST"]
[Termination "TokChess won on time"]

1. Nf3 {[%clk 0:02:29.3]} 1... Nf6 {[%clk 0:02:54.2]} 2. g3 {[%clk 0:02:29.6]}
2... e6 {[%clk 0:02:54.7]} 3. Bg2 {[%clk 0:02:30.5]} 3... d5 {[%clk 0:02:50.6]}
4. O-O {[%clk 0:02:31.4]} 4... c5 {[%clk 0:02:46.9]} 5. d4 {[%clk 0:02:32]} 5...
cxd4 {[%clk 0:02:44.8]} 6. Nxd4 {[%clk 0:02:31.7]} 6... e5 {[%clk 0:02:44.6]} 7.
Nb3 {[%clk 0:02:31.5]} 7... Nc6 {[%clk 0:02:41.3]} 8. Bg5 {[%clk 0:02:30.9]}
8... Be6 {[%clk 0:02:40.7]} 9. Nc3 {[%clk 0:02:29.8]} 9... d4 {[%clk 0:02:38.9]}
10. Ne4 {[%clk 0:02:27.2]} 10... Bxb3 {[%clk 0:02:08]} 11. axb3 {[%clk
0:02:24.9]} 11... Be7 {[%clk 0:02:08]} 12. Bxf6 {[%clk 0:02:19.2]} 12... gxf6
{[%clk 0:02:08.9]} 13. c3 {[%clk 0:01:37.4]} 13... f5 {[%clk 0:01:56]} 14. Nd2
{[%clk 0:01:36.1]} 14... O-O {[%clk 0:01:53.4]} 15. Nc4 {[%clk 0:01:35.5]} 15...
e4 {[%clk 0:01:41.5]} 16. cxd4 {[%clk 0:01:17.8]} 16... Qxd4 {[%clk 0:01:37]}
17. Ne3 {[%clk 0:01:17]} 17... Qe5 {[%clk 0:01:26.5]} 18. Qd5 {[%clk 0:01:10.7]}
18... Qxd5 {[%clk 0:01:20.9]} 19. Nxd5 {[%clk 0:01:11.6]} 19... Bc5 {[%clk
0:01:21.1]} 20. e3 {[%clk 0:01:06.5]} 20... Rfd8 {[%clk 0:01:17.6]} 21. Rfd1
{[%clk 0:01:04.9]} 21... Rd6 {[%clk 0:00:55.2]} 22. Nf4 {[%clk 0:00:49.8]} 22...
Rad8 {[%clk 0:00:53.9]} 23. Rxd6 {[%clk 0:00:49.1]} 23... Rxd6 {[%clk
0:00:54.8]} 24. Bh3 {[%clk 0:00:49.6]} 24... Ne7 {[%clk 0:00:19.4]} 25. Rc1
{[%clk 0:00:44.6]} 25... b6 {[%clk 0:00:17.1]} 26. Rc4 {[%clk 0:00:37.8]} 26...
Nc6 {[%clk 0:00:13.4]} 27. Bxf5 {[%clk 0:00:34.7]} 27... Rd1+ {[%clk 0:00:11.9]}
28. Kg2 {[%clk 0:00:34.5]} 28... Rd2 {[%clk 0:00:12.5]} 29. Rxe4 {[%clk
0:00:30.7]} 29... Rxb2 {[%clk 0:00:11.9]} 30. Nh5 {[%clk 0:00:30.9]} 30... Rxb3
{[%clk 0:00:10.1]} 31. Re8+ {[%clk 0:00:30.3]} 31... Bf8 {[%clk 0:00:07.1]} 32.
Bd7 {[%clk 0:00:26.1]} 32... Nb4 {[%clk 0:00:04.8]} 33. Ba4 {[%clk 0:00:23.9]}
33... Rb2 {[%clk 0:00:04.3]} 34. Bb5 {[%clk 0:00:23.3]} 34... Nd5 {[%clk
0:00:04]} 35. Bc4 {[%clk 0:00:19.4]} 35... Nc7 {[%clk 0:00:02.1]} 36. Rc8 {[%clk
0:00:18.7]} 36... Ne6 {[%clk 0:00:02.3]} 37. Nf6+ {[%clk 0:00:16.4]} 37... Kg7
{[%clk 0:00:02.2]} 38. Nd7 {[%clk 0:00:15.9]} 38... Bc5 {[%clk 0:00:01.6]} 39.
Kf3 {[%clk 0:00:12.4]} 39... Ng5+ {[%clk 0:00:01.2]} 40. Kg4 {[%clk 0:00:12]}
40... Ne4 {[%clk 0:00:01.3]} 41. f4 {[%clk 0:00:12.3]} 1-0

[Event "*** Titled Tuesday Blitz"]
[Site "Chess.com"]
[Date "2020.11.03"]
[Round "10"]
[White "PaulfromSPb"]
[Black "pastouche06"]
[Result "0-1"]
[WhiteElo "2700"]
[BlackElo "2539"]
[TimeControl "180+1"]
[EndTime "11:59:54 PST"]
[Termination "pastouche06 won by checkmate"]

1. e4 {[%clk 0:02:58.1]} 1... c6 {[%clk 0:02:59.8]} 2. d4 {[%clk 0:02:52.5]}
2... d5 {[%clk 0:03:00]} 3. f3 {[%clk 0:02:53.4]} 3... Qb6 {[%clk 0:02:59.1]} 4.
Nc3 {[%clk 0:02:52.6]} 4... dxe4 {[%clk 0:02:58.5]} 5. fxe4 {[%clk 0:02:52.5]}
5... e5 {[%clk 0:02:57.8]} 6. dxe5 {[%clk 0:02:52.4]} 6... Be6 {[%clk
0:02:57.2]} 7. Nf3 {[%clk 0:02:52.1]} 7... Nd7 {[%clk 0:02:57.4]} 8. Bd3 {[%clk
0:02:50.8]} 8... Ne7 {[%clk 0:02:57.1]} 9. Bf4 {[%clk 0:02:47.8]} 9... Ng6
{[%clk 0:02:56.8]} 10. Bg3 {[%clk 0:02:48]} 10... O-O-O {[%clk 0:02:51.3]} 11.
Qe2 {[%clk 0:02:47.1]} 11... Qxb2 {[%clk 0:02:48.9]} 12. O-O {[%clk 0:02:27.9]}
12... Bc5+ {[%clk 0:02:47.4]} 13. Kh1 {[%clk 0:02:26.2]} 13... Qxc3 {[%clk
0:02:47.9]} 14. Rab1 {[%clk 0:02:24.3]} 14... Ndxe5 {[%clk 0:02:41]} 15. Ba6
{[%clk 0:02:22.2]} 15... Bb6 {[%clk 0:02:31.9]} 16. a4 {[%clk 0:01:59]} 16...
Nxf3 {[%clk 0:02:01]} 17. Rxf3 {[%clk 0:01:58.2]} 17... Qd2 {[%clk 0:01:52.3]}
18. Qf1 {[%clk 0:01:49.6]} 18... Qa5 {[%clk 0:01:48.2]} 19. Bd3 {[%clk
0:01:33.8]} 19... Ne5 {[%clk 0:01:38]} 20. Rf5 {[%clk 0:01:30.2]} 20... Bxf5
{[%clk 0:01:33.7]} 21. Qxf5+ {[%clk 0:01:29.8]} 21... Nd7 {[%clk 0:01:27.7]} 22.
Qxf7 {[%clk 0:01:25.6]} 22... Rhf8 {[%clk 0:01:22.3]} 23. Qxg7 {[%clk
0:01:25.3]} 23... Bc7 {[%clk 0:01:09.8]} 24. e5 {[%clk 0:01:15.9]} 24... Bxe5
{[%clk 0:01:07.1]} 25. Qg5 {[%clk 0:01:10.1]} 25... Qc7 {[%clk 0:01:03.3]} 26.
Bh4 {[%clk 0:01:00.8]} 26... Bf6 {[%clk 0:01:01.3]} 27. Qh5 {[%clk 0:00:59.2]}
27... Bxh4 {[%clk 0:01:01.2]} 28. Qxh4 {[%clk 0:01:00.1]} 28... Ne5 {[%clk
0:00:56.4]} 29. Bxh7 {[%clk 0:00:54.8]} 29... Kb8 {[%clk 0:00:52.9]} 30. Be4
{[%clk 0:00:53.7]} 30... Qf7 {[%clk 0:00:51.3]} 31. h3 {[%clk 0:00:52]} 31...
Qf4 {[%clk 0:00:50.5]} 32. Qe7 {[%clk 0:00:41.9]} 32... Rd7 {[%clk 0:00:40]} 33.
Qb4 {[%clk 0:00:41.9]} 33... Rfd8 {[%clk 0:00:20.5]} 34. a5 {[%clk 0:00:40.4]}
34... Qd2 {[%clk 0:00:20.6]} 35. Qb2 {[%clk 0:00:37.4]} 35... Qd4 {[%clk
0:00:19.6]} 36. Qxd4 {[%clk 0:00:25.2]} 36... Rxd4 {[%clk 0:00:20.5]} 37. Bf5
{[%clk 0:00:23.8]} 37... a6 {[%clk 0:00:18.9]} 38. Kh2 {[%clk 0:00:22.9]} 38...
Nc4 {[%clk 0:00:18.8]} 39. Ra1 {[%clk 0:00:19.8]} 39... Rd2 {[%clk 0:00:18.5]}
40. h4 {[%clk 0:00:16]} 40... Ne3 {[%clk 0:00:18.4]} 41. Be4 {[%clk 0:00:16.2]}
41... Rg8 {[%clk 0:00:17.3]} 42. Rg1 {[%clk 0:00:15.9]} 42... Nxc2 {[%clk
0:00:16.7]} 43. h5 {[%clk 0:00:15.3]} 43... Rg5 {[%clk 0:00:16.2]} 44. Bf3
{[%clk 0:00:14.1]} 44... Nd4 {[%clk 0:00:16.1]} 45. Bd1 {[%clk 0:00:13.2]} 45...
Ne2 {[%clk 0:00:15.9]} 46. Re1 {[%clk 0:00:12.7]} 46... Rxh5# {[%clk 0:00:15.3]}
0-1

[Event "*** Titled Tuesday Blitz"]
[Site "Chess.com"]
[Date "2020.11.03"]
[Round "10"]
[White "Jeffinho023"]
[Black "mr_gustavo"]
[Result "1-0"]
[WhiteElo "2540"]
[BlackElo "2398"]
[TimeControl "180+1"]
[EndTime "11:59:54 PST"]
[Termination "Jeffinho023 won by checkmate"]

1. d4 {[%clk 0:03:00.9]} 1... d5 {[%clk 0:02:56.3]} 2. c4 {[%clk 0:02:51]} 2...
c6 {[%clk 0:02:52.7]} 3. Nc3 {[%clk 0:02:50.6]} 3... Nf6 {[%clk 0:02:51.6]} 4.
e3 {[%clk 0:02:50.7]} 4... e6 {[%clk 0:02:51.1]} 5. b3 {[%clk 0:02:50.5]} 5...
Nbd7 {[%clk 0:02:50]} 6. Bd3 {[%clk 0:02:50.6]} 6... Bd6 {[%clk 0:02:50.2]} 7.
Nge2 {[%clk 0:02:50.4]} 7... O-O {[%clk 0:02:50.3]} 8. Bb2 {[%clk 0:02:50.3]}
8... Re8 {[%clk 0:02:44.3]} 9. O-O {[%clk 0:02:49.8]} 9... e5 {[%clk 0:02:01]}
10. cxd5 {[%clk 0:02:46.5]} 10... cxd5 {[%clk 0:02:01]} 11. dxe5 {[%clk
0:02:45.7]} 11... Bxe5 {[%clk 0:01:59.5]} 12. Nd4 {[%clk 0:02:40.5]} 12... Nc5
{[%clk 0:01:55.8]} 13. Bb5 {[%clk 0:02:39.3]} 13... Bd7 {[%clk 0:01:43.4]} 14.
Bxd7 {[%clk 0:02:38.8]} 14... Qxd7 {[%clk 0:01:43.8]} 15. Nf3 {[%clk 0:02:37.7]}
15... Bc7 {[%clk 0:01:41]} 16. Rc1 {[%clk 0:02:35.4]} 16... Nce4 {[%clk
0:01:40.8]} 17. Nxe4 {[%clk 0:02:20.4]} 17... Nxe4 {[%clk 0:01:41.7]} 18. Qd3
{[%clk 0:02:16.6]} 18... Rad8 {[%clk 0:01:38]} 19. Rfd1 {[%clk 0:02:15.9]} 19...
Bb6 {[%clk 0:01:31.4]} 20. Bd4 {[%clk 0:02:15.4]} 20... Bxd4 {[%clk 0:01:30.7]}
21. Qxd4 {[%clk 0:02:15.7]} 21... Qb5 {[%clk 0:01:25.3]} 22. Rc2 {[%clk
0:01:58.1]} 22... Rc8 {[%clk 0:01:13.4]} 23. Rdc1 {[%clk 0:01:57.9]} 23... Rc6
{[%clk 0:00:57.9]} 24. Rxc6 {[%clk 0:01:46.8]} 24... bxc6 {[%clk 0:00:57.3]} 25.
Qd1 {[%clk 0:01:45.6]} 25... Rd8 {[%clk 0:00:51.4]} 26. Nd4 {[%clk 0:01:44.3]}
26... Qa6 {[%clk 0:00:44.5]} 27. Nxc6 {[%clk 0:01:44.1]} 27... Re8 {[%clk
0:00:21.1]} 28. Qxd5 {[%clk 0:01:42.4]} 28... g6 {[%clk 0:00:19.4]} 29. Ne5
{[%clk 0:01:34.3]} 29... Qe6 {[%clk 0:00:18.8]} 30. Qxe4 {[%clk 0:01:32.9]}
30... Qxe5 {[%clk 0:00:18.8]} 31. Qxe5 {[%clk 0:01:33.4]} 31... Rxe5 {[%clk
0:00:19.7]} 32. Rc7 {[%clk 0:01:32.5]} 32... Rd5 {[%clk 0:00:19.1]} 33. g3
{[%clk 0:01:32.3]} 33... a5 {[%clk 0:00:15.9]} 34. Rc4 {[%clk 0:01:30.4]} 34...
Kg7 {[%clk 0:00:14.9]} 35. Ra4 {[%clk 0:01:30]} 35... Kf6 {[%clk 0:00:14.8]} 36.
h4 {[%clk 0:01:30.3]} 36... Ke5 {[%clk 0:00:14.3]} 37. b4 {[%clk 0:01:29.6]}
37... axb4 {[%clk 0:00:13.9]} 38. Rxb4 {[%clk 0:01:30.5]} 38... Ra5 {[%clk
0:00:13.7]} 39. a4 {[%clk 0:01:30.6]} 39... Kd5 {[%clk 0:00:10.6]} 40. Kg2
{[%clk 0:01:25.7]} 40... f5 {[%clk 0:00:10.2]} 41. Kf3 {[%clk 0:01:24.7]} 41...
h6 {[%clk 0:00:08.9]} 42. Rb6 {[%clk 0:01:23.5]} 42... g5 {[%clk 0:00:06.3]} 43.
Rxh6 {[%clk 0:01:23.4]} 43... gxh4 {[%clk 0:00:06.3]} 44. Rxh4 {[%clk
0:01:22.8]} 44... Ke5 {[%clk 0:00:06.7]} 45. Rb4 {[%clk 0:01:22.5]} 45... Kf6
{[%clk 0:00:07.6]} 46. Kf4 {[%clk 0:01:20.7]} 46... Ra6 {[%clk 0:00:06.9]} 47.
f3 {[%clk 0:01:21]} 47... Ra5 {[%clk 0:00:07]} 48. Rb6+ {[%clk 0:01:18.1]} 48...
Kf7 {[%clk 0:00:06.6]} 49. Rb5 {[%clk 0:01:18.8]} 49... Rxa4+ {[%clk 0:00:05.7]}
50. Kxf5 {[%clk 0:01:18.7]} 50... Ra3 {[%clk 0:00:06.6]} 51. Kf4 {[%clk
0:01:19]} 51... Ra2 {[%clk 0:00:07.5]} 52. g4 {[%clk 0:01:19]} 52... Ra1 {[%clk
0:00:08.3]} 53. g5 {[%clk 0:01:19.1]} 53... Rg1 {[%clk 0:00:09.2]} 54. Kf5
{[%clk 0:01:18.5]} 54... Rf1 {[%clk 0:00:07.9]} 55. Rb7+ {[%clk 0:01:18.1]}
55... Kf8 {[%clk 0:00:07.8]} 56. f4 {[%clk 0:01:19]} 56... Re1 {[%clk
0:00:07.9]} 57. e4 {[%clk 0:01:19.5]} 57... Ra1 {[%clk 0:00:08.8]} 58. g6 {[%clk
0:01:19.9]} 58... Ra6 {[%clk 0:00:08.7]} 59. e5 {[%clk 0:01:18.2]} 59... Rc6
{[%clk 0:00:07]} 60. e6 {[%clk 0:01:18.4]} 60... Rc8 {[%clk 0:00:03.5]} 61. Kf6
{[%clk 0:01:18.4]} 61... Re8 {[%clk 0:00:04.4]} 62. f5 {[%clk 0:01:16.8]} 62...
Rc8 {[%clk 0:00:03.9]} 63. Rd7 {[%clk 0:01:13.1]} 63... Re8 {[%clk 0:00:03.2]}
64. e7+ {[%clk 0:01:12.4]} 64... Kg8 {[%clk 0:00:03.4]} 65. Rd8 {[%clk
0:01:12.8]} 65... Rxd8 {[%clk 0:00:01.6]} 66. exd8=Q# {[%clk 0:01:12.7]} 1-0